[Event "Chess Ladies Graz 2024"]
[Site "Graz"]
[Date "2024.03.01"]
[Round "7.5"]
[White "Polterauer, Chiara"]
[Black "Bodnaruk, Anastasia"]
[Result "1/2-1/2"]
[ECO "B81"]
[WhiteElo "2189"]
[BlackElo "2340"]
[Annotator "TA"]
[PlyCount "84"]
[EventDate "2024.02.25"]
[EventType "tourn"]
[EventCountry "AUT"]
[SourceTitle "playchess.com"]
[Source "ChessBase"]
[SourceQuality "1"]
[TimeControl "40/5400+30:1800+30"]

{[%evp 12,84,16,19,27,38,42,28,36,34,45,14,22,-87,-28,-22,-23,-27,-27,-20,-11,-18,-8,-50,-39,-44,-2,-2,18,22,27,15,16,0,26,20,44,0,55,29,74,17,22,15,15,27,27,35,24,26,19,31,52,16,25,11,8,0,0,0,0,0,0,0,0,0,0,0,0,0,8,8,8,8,8]} 1. e4 {[%emt 0:00:03]} c5 {[%emt 0:00:04]} 2. Nf3 {[%emt 0:00:04]} d6 {[%emt 0:00:03]} 3. d4 {[%emt 0:00:05]} cxd4 {[%emt 0:00:04]} 4. Nxd4 {[%emt 0:00:05]} Nf6 {[%emt 0:00:04]} 5. Nc3 {[%emt 0:00:08]} a6 {[%emt 0:00:05]} 6. h3 {[%emt 0:00:17]} e6 {[%emt 0:00:09]} 7. g4 {[%emt 0:00:18][%cal Bg2g4,Bg4g5][%mdl 32]} Be7 {[%emt 0:00:20]} 8. g5 {[%emt 0:00:28]} Nfd7 {[%emt 0:00:15][%cal Oe8g8]} 9. h4 {[%emt 0:00:13]} b5 {[%emt 0:00:44] Weiß hat minimalen Vorteil.} 10. a3 {[%emt 0:01:26]} Bb7 {[%emt 0:00:27]} 11. Bg2 {[%emt 0:00:12]} Nc6 {[%emt 0:04:14]} 12. h5 {[%emt 0:22:08]} (12. f4 $11) 12... Bxg5 {[%emt 0:06:20]} (12... Nxd4 $17 13. Qxd4 Bxg5) 13. Nxc6 $11 {[%emt 0:00:25]} Bxc6 {[%emt 0:00:03]} 14. Qxd6 {[%emt 0:00:54]} Rc8 {[%emt 0:05:08]} 15. Qg3 {[%emt 0:03:48]} Bxc1 {[%emt 0:05:26]} 16. Rxc1 {[%emt 0:00:24]} (16. Qxg7 $2 Ke7 17. Rxc1 Rg8 $19) 16... O-O {[%emt 0:01:02]} 17. h6 {[%emt 0:03:23][%csl Gh6][%cal Rg3g7] [#]} g6 {[%emt 0:01:19]} 18. O-O {[%emt 0:01:12][%cal Bh1f1,Bf1d1,Bd1d6,Bd6e6][%mdl 32]} a5 {[%emt 0:07:58]} (18... Qc7 {vereinfacht} 19. Qxc7 Rxc7 20. Rfe1 Rfc8) 19. Rfd1 {[%emt 0:02:54]} Qe7 {[%emt 0:04:25]} 20. Rd6 {[%emt 0:08:21]} b4 {[%emt 0:17:16]} 21. axb4 {[%emt 0:04:15]} axb4 {[%emt 0:00:04][%cal Of7f5] ...f5! ist eine echte Drohung.} 22. Na2 {[%emt 0:04:45]} f5 {[%emt 0:00:23] [#] Zielt auf ...f4 ab.} 23. Rcd1 {[%emt 0:07:15]} (23. Nxb4 Bb7 $16) 23... Nf6 {[%emt 0:08:13]} (23... f4 24. Qg4 Rce8 25. Nxb4 (25. Rxc6 Ne5 $17)) 24. Qe5 {[%emt 0:10:45]} Bxe4 {[%emt 0:09:22]} (24... Ng4 $11 25. Qxe6+ (25. Rxe6 Qf7 $11) 25... Qxe6 26. Rxe6 b3 27. cxb3 Bxe4 28. Bxe4 fxe4) 25. Rxe6 $14 {[%emt 0:03:56]} Qf7 {[%emt 0:03:26]} 26. Bxe4 {[%emt 0:02:28]} ({Günstiger ist} 26. Re7 $16 Rce8 (26... Qxa2 27. Rg7+ Kh8 28. Rdd7 Qb1+ 29. Bf1) 27. Rxf7 (27. Nxb4 $2 Qxe7 28. Qxe7 Rxe7 $19) 27... Rxe5 28. Rg7+ Kh8 29. Nxb4) 26... fxe4 $11 {[%emt 0:01:29]} 27. Re7 {[%emt 0:08:12]} Rce8 {[%emt 0:01:56][%cal Bc8e8,Be8e5,Be5g5,Bg5f5][%mdl 32]} ({Schwächer ist} 27... Qxa2 28. Rg7+ Kh8 29. Rdd7 Qb1+ 30. Kg2) 28. Rxf7 {[%emt 0:00:16]} (28. Nxb4 $2 {ist das falsche Schlagen.} Rxe7 (28... Qxe7 $2 29. Qxe7 Rxe7 30. Nd5 $19) 29. Qc3 Ng4 30. Qg7+ Qxg7 31. hxg7 Rxf2 $19 (31... Nxf2 $2 {geht unter.} 32. gxf8=Q+ Kxf8 33. Kxf2 $18) (31... Kxg7 $2 32. Nc6 $19)) 28... Rxe5 {[%emt 0:00:03]} 29. Rxf8+ {[%emt 0:00:49]} Kxf8 {[%emt 0:00:00]} 30. Nxb4 {[%emt 0:00:11][%mdl 4096] Endspiel. KRN-KRN} Rg5+ {[%emt 0:01:49]} 31. Kf1 {[%emt 0:00:15]} Rf5 {[%emt 0:00:14]} 32. Ke2 {[%emt 0:01:43]} Ng4 {[%emt 0:00:52][%csl LRf2,LRh6]} 33. Rf1 {[%emt 0:00:29]} Nxh6 {[%emt 0:02:57] Die Stellung ist ausgeglichen.} 34. f3 {[%emt 0:01:00]} exf3+ {[%emt 0:02:27]} 35. Rxf3 {[%emt 0:00:05]} Rxf3 {[%emt 0:00:35]} 36. Kxf3 {[%emt 0:00:07] KN-KN} Ke7 {[%emt 0:00:08]} 37. Kf4 {[%emt 0:01:04]} Nf7 {[%emt 0:01:52]} 38. c4 {[%emt 0:04:01]} h5 {[%emt 0:02:39]} 39. Nd3 {[%emt 0:01:47]} g5+ {[%emt 0:02:51]} 40. Kf5 {[%emt 0:02:42]} Nd6+ {[%emt 0:02:48]} 41. Kxg5 {[%emt 0:30:15]} Nxc4 {[%emt 0:30:03]} 42. Kxh5 {[%emt 0:00:06]} Nxb2 {[%emt 0:00:35] Gewichteter Fehlerwert: Weiß=0.15 (sehr präzise) /Schwarz=0.13 (sehr präzise) .  Fehler:       	Weiß=2     	Schwarz=2     Ungenau:       	Weiß=4     	Schwarz=3     OK:         	Weiß=20    	Schwarz=16    Bester:       	Weiß=1     	Schwarz=2} 1/2-1/2

[Event "Chess Ladies Graz 2024"]
[Site "Graz"]
[Date "2024.03.02"]
[Round "8.1"]
[White "Daulyte-Cornette, Deimante"]
[Black "Bodnaruk, Anastasia"]
[Result "1/2-1/2"]
[ECO "B95"]
[WhiteElo "2372"]
[BlackElo "2340"]
[Annotator "TA"]
[PlyCount "62"]
[EventDate "2024.02.25"]
[EventType "tourn"]
[EventCountry "AUT"]
[SourceTitle "playchess.com"]
[Source "ChessBase"]
[SourceQuality "1"]
[TimeControl "40/5400+30:1800+30"]

{[%evp 15,62,22,30,25,27,20,0,0,20,0,22,0,27,0,23,5,51,52,37,20,131,123,132,125,123,131,101,106,160,153,152,147,170,147,146,0,0,0,61,57,60,0,0,0,68,0,0,0,31]} 1. e4 {[%emt 0:00:03]} c5 {[%emt 0:00:08]} 2. Nf3 {[%emt 0:00:05]} d6 {[%emt 0:00:04]} 3. d4 {[%emt 0:00:07]} cxd4 {[%emt 0:00:05]} 4. Nxd4 {[%emt 0:00:06]} Nf6 {[%emt 0:00:04]} 5. Nc3 {[%emt 0:00:07]} a6 {[%emt 0:00:04]} 6. Bg5 {[%emt 0:00:09]} e6 {[%emt 0:02:54]} 7. Qf3 {[%emt 0:00:24]} Be7 {[%emt 0:02:25]} 8. O-O-O {[%emt 0:00:34]} Nbd7 {[%emt 0:01:57]} 9. g4 {[%emt 0:04:06]} h6 {[%emt 0:04:20]} 10. Bd2 {[%emt 0:00:32]} Qc7 {[%emt 0:13:30]} 11. h4 {[%emt 0:09:40] Strongly threatening g5.} Ne5 {[%emt 0:05:30][%csl LRf3,LRg4]} 12. Qg2 {[%emt 0:00:51] Threatens to win with g5.} Nexg4 {[%emt 0:03:20]} 13. f3 {[%emt 0:02:59][%cal Bf2f3,Bf3f4][%mdl 32]} Ne5 {[%emt 0:00:32]} 14. h5 $36 {[%emt 0:00:35][%mdl 2048] White has some pressure.} (14. Qxg7 Ng6 15. h5 (15. Bxh6 $2 Nh5 $19) 15... Rh7 $17) 14... Kf8 {[%emt 0:08:33]} 15. f4 {[%emt 0:11:22]} Nc4 {[%emt 0:06:12]} (15... Nc6 $11 16. Nxc6 bxc6) 16. Bxc4 $14 {[%emt 0:00:37]} Qxc4 {[%emt 0:00:02]} 17. Be3 {[%emt 0:00:38]} Bd7 {[%emt 0:06:57]} (17... e5 $1 $11) 18. e5 $16 {[%emt 0:17:34]} Nd5 {[%emt 0:01:15] [#]} 19. Nf5 {[%emt 0:00:52][%mdl 512]} exf5 {[%emt 0:01:21]} 20. Nxd5 {[%emt 0:00:11]} (20. Rxd5 $2 Bc6 21. Rf1 (21. Rg1 $2 Rg8 $19) 21... Rd8 $19 (21... Bxd5 $2 22. Nxd5 Qc6 23. exd6 $19) (21... dxe5 $2 22. fxe5 Bxd5 23. Nxd5 $19)) 20... Bc6 {[%emt 0:05:45] Black is weak on the dark squares} 21. Rhg1 {[%emt 0:03:07]} Rg8 {[%emt 0:00:26]} (21... Rh7 $142) 22. b3 {[%emt 0:02:23] The board is on fire. White is more active.} Bxd5 {[%emt 0:03:08]} 23. Rxd5 {[%emt 0:03:00]} Qc6 {[%emt 0:02:51]} 24. exd6 {[%emt 0:06:37]} Bxd6 {[%emt 0:00:28] [#]} 25. Rxd6 {[%emt 0:02:15]} Qxd6 $11 {[%emt 0:00:18]} 26. Qxb7 {[%emt 0:00:06]} Re8 {[%emt 0:10:06]} ({Better is} 26... Rd8 $1 $11 27. Qa7 Rd7 28. Qa8+ Rd8) 27. Qa7 $1 $14 {[%emt 0:05:36][%mdl 1024] White has compensation.} Re7 $1 {[%emt 0:02:54]} 28. Qa8+ {[%emt 0:02:45]} Re8 {[%emt 0:00:04]} 29. Qa7 {[%emt 0:00:20]} Re7 $1 {[%emt 0:03:24]} 30. Qa8+ {[%emt 0:13:03]} (30. Qc5 $5 Qc7 31. Bd4 $11) 30... Re8 {[%emt 0:00:12]} 31. Qa7 {[%emt 0:00:03] Threatening mate with Bc5.} Re7 $1 {[%emt 0:00:12] Weighted Error Value: White=0.19 (very precise) /Black=0.20 (precise) .  Mistake:       	White=1     	Black=4      Inaccurate:     	White=1     	---        OK:         	White=9     	Black=5      Best:        	White=3     	Black=4      Strong:       	White=1     	Black=3      Brilliant:      	White=1     	---} 1/2-1/2

[Event "Chess Ladies Graz 2024"]
[Site "Graz"]
[Date "2024.03.02"]
[Round "8.2"]
[White "Mayrhuber, Nikola"]
[Black "Polterauer, Chiara"]
[Result "1/2-1/2"]
[ECO "A96"]
[WhiteElo "1980"]
[BlackElo "2189"]
[Annotator "RC"]
[PlyCount "34"]
[EventDate "2024.02.25"]
[EventType "tourn"]
[EventCountry "AUT"]
[SourceTitle "playchess.com"]
[Source "ChessBase"]
[SourceQuality "1"]
[TimeControl "40/5400+30:1800+30"]

1. d4 {[%emt 0:00:02]} f5 {[%emt 0:00:05]} 2. c4 {[%emt 0:00:33]} e6 {[%emt 0:00:10]} 3. g3 {[%emt 0:00:32]} Nf6 {[%emt 0:00:09]} 4. Bg2 {[%emt 0:00:06]} Be7 {[%emt 0:00:21]} 5. Nf3 {[%emt 0:02:47]} O-O {[%emt 0:00:14]} 6. O-O {[%emt 0:00:16]} d6 {[%emt 0:00:09]} 7. Nc3 {[%emt 0:00:29]} Ne4 {[%emt 0:00:52]} 8. Qc2 {[%emt 0:00:52]} Nxc3 {[%emt 0:00:42]} 9. Qxc3 {[%emt 0:01:26]} a5 {[%emt 0:00:19]} 10. b3 {[%emt 0:02:29]} Nd7 {[%emt 0:00:56]} 11. a3 {[%emt 0:01:40]} Bf6 {[%emt 0:02:07]} 12. Bb2 {[%emt 0:14:08]} c5 {[%emt 0:12:33]} 13. Qc2 {[%emt 0:01:26]} Ra6 {[%emt 0:12:25]} 14. dxc5 {[%emt 0:09:08]} dxc5 {[%emt 0:01:28]} 15. Rad1 {[%emt 0:06:18]} Bxb2 {[%emt 0:02:26]} 16. Qxb2 {[%emt 0:00:06]} Qc7 {[%emt 0:00:08]} 17. e4 {[%emt 0:08:34]} fxe4 {[%emt 0:21:26]} 1/2-1/2

[Event "Chess Ladies Graz 2024"]
[Site "Graz"]
[Date "2024.03.02"]
[Round "8.3"]
[White "Brunello, Marina"]
[Black "Trippold, Denise"]
[Result "1/2-1/2"]
[ECO "C00"]
[WhiteElo "2345"]
[BlackElo "2147"]
[Annotator "TA"]
[PlyCount "132"]
[EventDate "2024.02.25"]
[EventType "tourn"]
[EventCountry "AUT"]
[SourceTitle "playchess.com"]
[Source "ChessBase"]
[SourceQuality "1"]
[TimeControl "40/5400+30:1800+30"]

{[%evp 39,132,-29,0,0,0,0,17,-145,-77,-92,-108,-150,38,21,139,0,0,0,0,0,0,0,0,0,19,0,8,0,0,0,0,0,13,12,11,9,16,8,15,9,23,0,0,0,13,6,12,13,34,26,54,62,67,62,114,116,114,66,73,67,134,133,131,135,168,0,141,128,125,125,122,121,139,8,8,8,8,8,8,8,8,8,8,8,8,8,8,8,8,8,8,8,8,8,8]} 1. e4 {[%emt 0:00:09]} e6 {[%emt 0:00:10]} 2. d3 {[%emt 0:00:08]} d5 {[%emt 0:00:18]} 3. Qe2 {[%emt 0:00:04]} Be7 {[%emt 0:01:35]} 4. Nf3 {[%emt 0:00:13]} Nf6 {[%emt 0:00:25]} 5. g3 {[%emt 0:00:11]} c5 {[%emt 0:00:17]} 6. Bg2 {[%emt 0:00:16]} Nc6 {[%emt 0:00:05]} 7. e5 {[%emt 0:00:15] C00: French: Unusual White 2nd moves.} Nd7 {[%emt 0:00:13]} 8. O-O {[%emt 0:00:11]} b5 {[%emt 0:01:32]} 9. c3 {[%emt 0:02:09]} a5 {[%emt 0:02:30]} 10. h4 {[%emt 0:02:07]} a4 {[%emt 0:04:18]} 11. Bf4 {[%emt 0:03:51]} Ba6 {[%emt 0:02:44]} 12. Nbd2 {[%emt 0:02:04]} h6 $146 {[%emt 0:06:28]} ({Predecessor:} 12... Qb8 13. Rfe1 Bd8 14. h5 Ba5 15. Rac1 Ra7 16. Nh4 c4 17. Bxd5 cxd3 18. Qg4 Ne7 19. Qxg7 {½-½ Kandic,M (2109)-Mircov,N (1944) Gibraltar Challengers-B 14th 2016 (1)}) 13. h5 {[%emt 0:01:49]} Qa5 {[%emt 0:02:34]} 14. Rfc1 {[%emt 0:04:38]} O-O {[%emt 0:09:32]} 15. Nf1 {[%emt 0:21:01]} Rfc8 {[%emt 0:19:32]} 16. Ne3 {[%emt 0:01:29]} Qd8 {[%emt 0:02:56]} 17. Ng4 {[%emt 0:07:00]} Bf8 {[%emt 0:00:39]} 18. Qd2 {[%emt 0:04:37]} b4 {[%emt 0:06:18]} 19. c4 {[%emt 0:01:13]} dxc4 {[%emt 0:03:10]} 20. dxc4 {[%emt 0:00:13]} Na5 {[%emt 0:00:40]} 21. Rd1 {[%emt 0:16:18]} Ra7 {[%emt 0:12:56]} 22. Qc2 {[%emt 0:01:09]} Bxc4 {[%emt 0:04:12]} 23. Qxa4 $2 {[%emt 0:05:07]} (23. Bxh6 $1 $11 b3 24. axb3 Bxb3 25. Qe4) 23... Bd5 {[%emt 0:03:31]} (23... Rca8 $142 {[%cal Oa5b3] And now ...Nb3! would win.} 24. Qc2 b3 (24... Bd5 25. Rxd5 exd5 26. e6 $16) 25. axb3 Bxb3) 24. Qc2 $17 {[%emt 0:00:44]} b3 {[%emt 0:01:34]} 25. axb3 {[%emt 0:01:03]} Qb6 $2 {[%emt 0:03:51]} (25... Bxb3 $17 26. Qe2 Bxd1 27. Rxd1 Kh8) 26. Nd2 {[%emt 0:04:40]} Rb7 {[%emt 0:04:19] [#]} (26... Bxg2 $11 27. Kxg2 Nc6) 27. Nc4 {[%emt 0:02:59]} (27. Bxd5 $1 $16 exd5 28. b4) 27... Qxb3 $11 {[%emt 0:02:27]} 28. Qxb3 {[%emt 0:03:15]} Nxb3 {[%emt 0:00:01]} 29. Ra6 {[%emt 0:00:51]} Nd4 {[%emt 0:04:19]} 30. Nge3 {[%emt 0:00:27]} Bxg2 {[%emt 0:01:28]} 31. Kxg2 {[%emt 0:00:12]} Nc6 {[%emt 0:00:41]} 32. g4 {[%emt 0:02:28]} Nb4 {[%emt 0:00:05]} 33. Ra5 {[%emt 0:05:09]} Nc6 {[%emt 0:00:02]} 34. Ra6 {[%emt 0:00:23]} Nb4 {[%emt 0:00:02]} 35. Ra3 {[%emt 0:00:07]} Nb6 {[%emt 0:01:55]} 36. Nxb6 {[%emt 0:00:14]} Rxb6 {[%emt 0:00:01]} 37. Nc4 {[%emt 0:00:05]} Rb7 {[%emt 0:00:28]} 38. Be3 {[%emt 0:00:52]} Nd5 {[%emt 0:00:16]} 39. Kf3 {[%emt 0:00:16]} Rcb8 {[%emt 0:00:23]} 40. Ra5 {[%emt 0:03:00]} Rb4 {[%emt 0:00:59]} 41. Rc1 {[%emt 0:36:29]} Rb3 {[%emt 0:07:28]} 42. Ra7 {[%emt 0:00:00]} Be7 {[%emt 0:06:19]} 43. Rca1 {[%emt 0:00:00]} f6 {[%emt 0:08:23]} 44. R1a6 {[%emt 0:00:00]} R3b4 {[%emt 0:06:43]} 45. b3 {[%emt 0:00:00]} Rxb3 {[%emt 0:01:02]} 46. Rxe6 {[%emt 0:00:00]} R3b7 {[%emt 0:00:57]} (46... Bf8 $14) 47. Rxb7 $16 {[%emt 0:00:00]} Rxb7 {[%emt 0:00:01]} 48. Rc6 {[%emt 0:00:00]} ({Better is} 48. Ke4 $16 Nxe3 49. fxe3 (49. Nxe3 fxe5 50. Nc4 Bf6 $14)) 48... Rb4 $14 {[%emt 0:03:13]} 49. exf6 $1 {[%emt 0:00:00]} Nxf6 {[%emt 0:00:29]} (49... gxf6 $14 50. Nd2 Nxe3 51. fxe3 Kf7) 50. Ne5 $16 {[%emt 0:00:00]} (50. Bxc5 $2 {loses.} Rxc4 51. Bxe7 Rxc6 $19) 50... Rb8 {[%emt 0:00:47]} 51. Ng6 {[%emt 0:00:00]} Kf7 {[%emt 0:00:18]} 52. Ne5+ $2 {[%emt 0:01:40]} ({But not} 52. Bxc5 $6 Bxc5 53. Rxc5 Kg8 $16) (52. Rc7 $18 Nd5 53. Rd7) 52... Ke8 {[%emt 0:00:20]} (52... Kg8 $1 $11 {remains equal.}) 53. Bxc5 {[%emt 0:00:10]} Bxc5 {[%emt 0:00:27]} 54. Rxc5 {[%emt 0:00:04]} Rb7 {[%emt 0:00:56]} 55. Ra5 {[%emt 0:01:04]} Ke7 {[%emt 0:00:28] [#]} 56. Ra7 {[%emt 0:00:34]} ({White should try} 56. Kf4 $3 $16 {[%mdl 512]}) 56... Rxa7 $11 {[%emt 0:00:02]} 57. Nc6+ {[%emt 0:00:04]} Kf7 {[%emt 0:01:01]} 58. Nxa7 {[%emt 0:00:05]} g6 {[%emt 0:00:05]} 59. hxg6+ {[%emt 0:01:03]} Kxg6 {[%emt 0:00:01]} 60. Nc6 {[%emt 0:00:06]} h5 {[%emt 0:01:18]} 61. Ne5+ {[%emt 0:01:18]} Kg5 {[%emt 0:00:01]} 62. gxh5 {[%emt 0:00:33]} Nxh5 {[%emt 0:00:17]} 63. Nf7+ {[%emt 0:00:09]} Kf5 {[%emt 0:00:26]} 64. Nd6+ {[%emt 0:00:05]} Ke6 {[%emt 0:00:56]} 65. Ne4 {[%emt 0:00:06]} Ke5 {[%emt 0:00:29]} 66. Ng3 {[%emt 0:00:55]} Nf6 {[%emt 0:00:20]} 1/2-1/2

[Event "Chess Ladies Graz 2024"]
[Site "Graz"]
[Date "2024.03.02"]
[Round "8.4"]
[White "Atalik, Ekaterina"]
[Black "Mkrtchian, Lilit"]
[Result "1-0"]
[ECO "A90"]
[WhiteElo "2405"]
[BlackElo "2378"]
[Annotator "TA"]
[PlyCount "89"]
[EventDate "2024.02.25"]
[EventType "tourn"]
[EventCountry "AUT"]
[SourceTitle "playchess.com"]
[Source "ChessBase"]
[SourceQuality "1"]
[TimeControl "40/5400+30:1800+30"]

{[%evp 9,89,31,28,25,19,24,34,10,16,8,42,52,58,68,66,66,252,237,278,272,254,214,184,167,166,160,165,168,166,144,149,160,191,151,149,151,166,168,167,172,180,157,179,172,300,316,315,314,325,308,1088,342,366,247,368,365,364,372,354,105,111,12,16,0,171,156,197,204,204,197,197,197,197,197,1393,1222,5185,2481,4827,4814,5775,5441]} 1. d4 {[%emt 0:00:06]} e6 {[%emt 0:01:08]} 2. c4 {[%emt 0:00:11]} f5 {[%emt 0:00:30]} 3. g3 {[%emt 0:00:14]} Nf6 {[%emt 0:00:18]} 4. Bg2 {[%emt 0:00:09]} d5 {[%emt 0:00:09]} 5. Nh3 {[%emt 0:01:08]} Bd6 {[%emt 0:00:25]} 6. Bf4 {[%emt 0:00:48]} Be7 {[%emt 0:00:33]} 7. O-O {[%emt 0:01:19]} O-O {[%emt 0:00:04]} 8. Qc2 {[%emt 0:01:23] White is slightly better.} Nc6 {[%emt 0:03:26]} 9. Rd1 {[%emt 0:00:44]} Nb4 {[%emt 0:01:16]} 10. Qc1 {[%emt 0:04:35]} a5 {[%emt 0:19:58]} 11. a3 {[%emt 0:01:55]} Nc6 {[%emt 0:07:28]} 12. Nc3 {[%emt 0:01:53]} dxc4 $2 {[%emt 0:03:51]} (12... a4 $14) 13. d5 $18 {[%emt 0:00:49]} Na7 {[%emt 0:05:54]} 14. dxe6 {[%emt 0:01:18]} Qe8 {[%emt 0:02:50]} 15. Bxc7 {[%emt 0:01:33]} Nb5 {[%emt 0:02:53]} 16. Nxb5 {[%emt 0:06:49]} Qxb5 {[%emt 0:00:05]} 17. Bd6 {[%emt 0:04:04]} (17. Nf4 $2 Qc5 18. Rd5 Qxc7 $19) 17... Bxd6 {[%emt 0:05:32]} 18. Rxd6 {[%emt 0:01:24]} Ra6 {[%emt 0:13:25]} 19. Rd4 {[%emt 0:20:41]} Bxe6 {[%emt 0:02:22]} 20. Ng5 {[%emt 0:01:04]} Rb6 {[%emt 0:12:02]} 21. a4 {[%emt 0:07:10]} Qe5 {[%emt 0:01:26]} 22. e3 {[%emt 0:01:40]} h6 {[%emt 0:14:19]} 23. Nxe6 {[%emt 0:00:32]} Qxe6 {[%emt 0:00:06]} 24. Rxc4 {[%emt 0:01:16]} Rxb2 {[%emt 0:00:43]} 25. Qxb2 {[%emt 0:01:50]} Qxc4 {[%emt 0:00:05]} 26. Qxb7 {[%emt 0:00:27]} Rd8 {[%emt 0:00:35]} (26... Rc8 {was worth a try.} 27. Bf1 Qc6 28. Qxc6 Rxc6) 27. Qb6 {[%emt 0:04:15][%csl LRa5,LRd8]} Rd2 {[%emt 0:01:09]} 28. Qxa5 {[%emt 0:01:32]} Qc2 {[%emt 0:00:30]} 29. Rf1 {[%emt 0:03:02]} Ng4 $2 {[%emt 0:00:40]} (29... Kh7 30. h3 Qd3) 30. Qa8+ $2 {[%emt 0:00:50]} (30. Bd5+ Kh7 31. Be6 Nxe3 32. Qa8 (32. fxe3 $2 Rg2+ 33. Kh1 Rxh2+ 34. Kg1 Qg2#) (32. Qe5 Rxf2 33. Bxf5+ Qxf5 $17)) 30... Kh7 {[%emt 0:00:04]} 31. Qf3 {[%emt 0:01:55]} Ne5 {[%emt 0:01:23]} (31... Qc5 $142 32. h3 Nf6) 32. Qf4 {[%emt 0:00:24]} Ng6 {[%emt 0:00:22]} 33. Qb4 {[%emt 0:00:34]} Ne5 {[%emt 0:00:36][%cal Bg6e5,Be5f3,Bf3g5,Bg5e4][%mdl 32]} 34. Bh3 $2 {[%emt 0:10:11]} (34. a5 $18) 34... Nf3+ $16 {[%emt 0:00:43] [#]} 35. Kg2 {[%emt 0:00:45]} (35. Kh1 $1 $16 {Qf4 would now be deadly.} Ng5 36. Bg2 (36. Bxf5+ $2 Qxf5 37. Qb1 Qxb1 $19) 36... Rxf2 37. Rxf2 Qxf2 38. Qb1) 35... Ng5 $11 {[%emt 0:00:34]} 36. Qf4 {[%emt 0:03:46]} (36. Bxf5+ $2 Qxf5 37. Qb7 (37. Qxd2 $2 Qf3+ 38. Kg1 Nh3#) 37... Rb2 $19) 36... Qc6+ $2 {[%emt 0:00:15] [#]} (36... Nxh3 $11 {and Black is okay.} 37. Kxh3 g5) 37. e4 $1 $18 {[%emt 0:00:10]} fxe4 {[%emt 0:00:38][%cal Bf5e4,Be4e3,Be3e2][%mdl 32] ( -> ...e3+)} (37... Qxe4+ 38. Qxe4) 38. Bf5+ {[%emt 0:04:15]} (38. Qxd2 $2 e3+ (38... Qxa4 $2 39. Qd7 $18) 39. f3 exd2 $19) 38... g6 {[%emt 0:00:07][%cal Og6f5]} 39. Qxd2 {[%emt 0:00:25] aiming for Rc1.} e3+ {[%emt 0:00:09] [#]} 40. Be4 $1 {[%emt 0:00:04]} Nxe4 {[%emt 0:01:21]} 41. Qc1 {[%emt 0:33:36]} (41. Qxe3 Nd2+ 42. f3 (42. Kg1 Nf3+ 43. Kh1 Nd2+ 44. f3 Nxf1 $11) 42... Nxf1 43. Kxf1 Qxa4 $14) 41... Nc3+ $2 {[%emt 0:16:37]} (41... Qb7 42. fxe3 (42. Qxe3 Nd2+ 43. f3 Nxf1 $14) 42... Nd2+ 43. Kg1 Nxf1) 42. f3 {[%emt 0:00:00] Black must now prevent Re1. White is clearly winning.} e2 {[%emt 0:00:36]} 43. Re1 {[%emt 0:00:00]} Qc4 {[%emt 0:00:57]} 44. Qe3 {[%emt 0:00:00]} h5 {[%emt 0:02:43]} 45. a5 {[%emt 0:00:00] Weighted Error Value: White=0.38/Black=0.35.  Loses game:     	---       	Black=2      Missed win:     	White=1     	---        Mistake:       	White=2     	Black=4      Inaccurate:     	---       	Black=2      OK:         	White=11    	Black=14     Best:        	White=7     	Black=6      Brilliant:      	White=2     	---} 1-0

[Event "Chess Ladies Graz 2024"]
[Site "Graz"]
[Date "2024.03.02"]
[Round "8.5"]
[White "Froewis, Annika"]
[Black "Schloffer, Jasmin-Denise"]
[Result "1-0"]
[ECO "B15"]
[WhiteElo "2133"]
[BlackElo "2178"]
[Annotator "RC"]
[PlyCount "67"]
[EventDate "2024.02.25"]
[EventType "tourn"]
[EventCountry "AUT"]
[SourceTitle "playchess.com"]
[Source "ChessBase"]
[SourceQuality "1"]
[TimeControl "40/5400+30:1800+30"]

1. e4 {[%emt 0:00:03]} c6 {[%emt 0:00:04]} 2. Nc3 {[%emt 0:00:09]} d5 {[%emt 0:00:30]} 3. d4 {[%emt 0:00:09]} dxe4 {[%emt 0:00:06]} 4. Nxe4 {[%emt 0:00:06]} Nf6 {[%emt 0:00:06]} 5. Nxf6+ {[%emt 0:00:06]} exf6 {[%emt 0:00:05]} 6. c3 {[%emt 0:00:44]} Bd6 {[%emt 0:00:10]} 7. Bd3 {[%emt 0:00:13]} O-O {[%emt 0:00:09]} 8. Qc2 {[%emt 0:00:14]} Re8+ {[%emt 0:00:07]} 9. Ne2 {[%emt 0:00:06]} h5 {[%emt 0:00:06]} 10. O-O {[%emt 0:00:11]} h4 {[%emt 0:00:17]} 11. h3 {[%emt 0:00:08]} Nd7 {[%emt 0:01:00]} 12. Be3 {[%emt 0:00:19]} Nf8 {[%emt 0:00:53]} 13. Rad1 {[%emt 0:00:10]} Be6 {[%emt 0:10:19]} 14. c4 {[%emt 0:00:13]} Bc7 {[%emt 0:10:13]} 15. Rfe1 {[%emt 0:17:51]} g5 {[%emt 0:10:11]} 16. Qc1 {[%emt 0:24:32]} Qd6 {[%emt 0:10:21]} 17. f4 {[%emt 0:05:02]} g4 {[%emt 0:16:04]} 18. d5 {[%emt 0:06:06]} cxd5 {[%emt 0:06:42]} 19. c5 {[%emt 0:02:23]} Qe7 {[%emt 0:05:37]} 20. Nd4 {[%emt 0:07:34]} gxh3 {[%emt 0:04:50]} 21. gxh3 {[%emt 0:02:42]} Bxh3 {[%emt 0:03:09]} 22. Kh2 {[%emt 0:04:17]} Bd7 {[%emt 0:06:38]} 23. Bf2 {[%emt 0:09:42]} Be6 {[%emt 0:06:00]} 24. Bxh4 {[%emt 0:04:53]} Qd8 {[%emt 0:01:35]} 25. Kh1 {[%emt 0:07:28]} Qb8 {[%emt 0:04:10]} 26. Rg1+ {[%emt 0:01:06]} Ng6 {[%emt 0:00:13]} 27. Bxg6 {[%emt 0:01:22]} fxg6 {[%emt 0:00:08]} 28. Qc2 {[%emt 0:02:52]} Bf7 {[%emt 0:01:15]} 29. Rxg6+ {[%emt 0:00:31]} Kf8 {[%emt 0:00:05]} 30. Rxf6 {[%emt 0:00:17]} Qc8 {[%emt 0:01:31]} 31. Rxf7+ {[%emt 0:00:39]} Kxf7 {[%emt 0:00:17]} 32. Qh7+ {[%emt 0:00:08]} Kf8 {[%emt 0:00:04]} 33. Qh8+ {[%emt 0:00:16]} Kf7 {[%emt 0:00:15]} 34. Qf6+ {[%emt 0:00:08]} 1-0